fUST/lending_fUST_20240628
["ID","MTS","AMOUNT","RATE_DAILY","PERIOD"]
[330515210,1719547839150,-209.0,0.00035485,2]
[330515211,1719547839161,-209.0,0.00035485,2]
[330515212,1719547839170,-209.0,0.00035485,2]
[330515213,1719547839179,-209.0,0.00035485,2]
[330515214,1719547839188,-209.0,0.00035485,2]
[330515215,1719547839198,-209.0,0.00035485,2]
[330515216,1719547839207,-209.0,0.00035485,2]
[330515217,1719547839216,-209.0,0.00035485,2]
[330515218,1719547839228,-209.0,0.00035485,2]
[330515219,1719547839237,-209.0,0.00035485,2]
[330515220,1719547839246,-209.0,0.00035485,2]
[330515221,1719547839255,-209.0,0.00035485,2]
[330515222,1719547839264,-209.0,0.00035485,2]
[330515223,1719547839273,-209.0,0.00035485,2]
[330515224,1719547839282,-209.0,0.00035485,2]
[330515225,1719547839291,-209.0,0.00035485,2]
[330515226,1719547839300,-209.0,0.00035485,2]
[330515227,1719547839309,-209.0,0.00035485,2]
[330515228,1719547839318,-209.0,0.00035485,2]
[330515229,1719547839327,-209.0,0.00035485,2]
[330515230,1719547839336,-209.0,0.00035485,2]
[330515231,1719547839345,-209.0,0.00035485,2]
[330515232,1719547839354,-209.0,0.00035485,2]
[330515233,1719547839363,-209.0,0.00035485,2]
[330515234,1719547839372,-209.0,0.00035485,2]
[330515235,1719547839381,-209.0,0.00035485,2]
[330515236,1719547839391,-209.0,0.00035485,2]
[330515237,1719547839400,-209.0,0.00035485,2]
[330515238,1719547839409,-209.0,0.00035485,2]
[330515239,1719547839418,-209.0,0.00035485,2]
[330515240,1719547839427,-209.0,0.00035485,2]
[330515241,1719547839437,-209.0,0.00035485,2]
[330515242,1719547839445,-153.0,0.00035487,2]
[330515243,1719547839455,-153.0,0.00035487,2]
[330515244,1719547839464,-153.0,0.00035487,2]
[330515245,1719547839474,-153.0,0.00035487,2]
[330515246,1719547839484,-153.0,0.00035487,2]
[330515248,1719547839494,-153.0,0.00035487,2]
[330515250,1719547839503,-153.0,0.00035487,2]
[330515252,1719547839514,-153.0,0.00035487,2]
[330515254,1719547839523,-153.0,0.00035487,2]
[330515256,1719547839533,-153.0,0.00035487,2]
[330515258,1719547839542,-153.0,0.00035487,2]
[330515259,1719547839552,-153.0,0.00035487,2]
[330515261,1719547839562,-153.0,0.00035487,2]
[330515262,1719547839572,-627.3586694,0.00035607,2]
[330515263,1719547839581,-156.92224509,0.0003591,7]
[330515264,1719547839591,-659.08627786,0.00035999,2]
[330515265,1719547839601,-156.92224509,0.00036151,7]
[330515266,1719547839610,-159.50123805,0.00036182,7]
[330515267,1719547839619,-1204.3162592,0.00036229,2]
[330515269,1719547839629,-755.45153777,0.00036351,2]
[330515270,1719547839638,-627.3586694,0.0003649,2]
[330515271,1719547839648,-155.12229113,0.00037085,4]
[330515272,1719547839657,-155.04591088,0.00037259,4]
[330515273,1719547839667,-364.81564226,0.00037334,2]
[330515274,1719547839677,-627.3586694,0.00037373,2]
[330515275,1719547839686,-156.92224509,0.00037386,7]
[330515276,1719547839697,-154.82195475,0.00037523,4]
[330515278,1719547839706,-269.54035661,0.00037523,4]
[330515280,1719547839716,-168.04133986,0.00037523,4]
[330515281,1719547839727,-300.07647617,0.00037523,4]
[330515283,1719547839736,-267.19433174,0.00037523,4]
[330515284,1719547839746,-259.82642088,0.00037523,4]
[330515285,1719547839756,-314.38013706,0.00037523,4]
[330515286,1719547839766,-772.0,0.00037536,2]
[330515287,1719547839776,-580.70270839,0.00037587,4]
[330515289,1719547839786,-286.45866748,0.00037587,4]
[330515290,1719547839797,-627.3586694,0.00038256,2]
[330515292,1719547839806,-2684.17,0.00038335,3]
[330515294,1719547839816,-2236.8,0.00038335,3]
[330515295,1719547839826,-2518.99083177,0.00038345,4]
[330515296,1719547839835,-51736.25556832,0.00038345,7]
[330515298,1719547839845,-32746.880813,0.00038346,4]
[330515300,1719547839855,-1033.09,0.00038355,2]
[330515302,1719547839866,-1033.09,0.00038355,2]
[330515304,1719547839876,-1033.09,0.00038355,2]
[330515306,1719547839886,-1033.09,0.00038355,2]
[330515308,1719547839895,-1033.09,0.00038355,2]
[330515310,1719547839905,-1033.09,0.00038355,2]
[330515311,1719547839915,-1033.09,0.00038355,2]
[330515313,1719547839925,-1033.09,0.00038355,2]
[330515315,1719547839935,-1033.09,0.00038355,2]
[330515317,1719547839944,-1033.09,0.00038355,2]
[330515319,1719547839954,-9513.06754983,0.00038356,7]
[330515321,1719547839963,-500.0,0.00038356,30]
[330515323,1719547839974,-581.53,0.00038356,30]
[330515325,1719547839983,-500.0,0.00038356,30]
[330515327,1719547839993,-331.88807004,0.00038356,30]
[330515328,1719547840002,-567.41,0.00038356,30]
[330515329,1719547840012,-466.02071786,0.00038356,30]
[330515330,1719547840021,-500.0,0.00038356,2]
[330515331,1719547840031,-500.0,0.00038356,30]
[330515332,1719547840040,-500.0,0.00038356,30]
[330515333,1719547840049,-500.0,0.00038356,30]
[330515334,1719547840058,-500.0,0.00038356,30]
[330515335,1719547840068,-500.0,0.00038356,30]
[330515336,1719547840077,-848.12,0.00038356,30]
[330515337,1719547840086,-528.96315649,0.00038356,30]
[330515338,1719547840095,-500.0,0.00038356,30]
[330515339,1719547840105,-1357.53,0.00038356,30]
[330515340,1719547840114,-503.2793105,0.00038356,30]
[330515341,1719547840123,-500.0,0.00038356,30]
[330515342,1719547840132,-500.0,0.00038356,30]
[330515343,1719547840142,-500.0,0.00038356,30]
[330515344,1719547840156,-500.0,0.00038356,30]
[330515345,1719547840165,-500.0,0.00038356,30]
[330515346,1719547840175,-500.0,0.00038356,30]
[330515347,1719547840185,-500.0,0.00038356,30]
[330515348,1719547840196,-500.0,0.00038356,30]
[330515349,1719547840206,-1360.83,0.00038356,30]
[330515350,1719547840215,-500.0,0.00038356,30]
[330515351,1719547840226,-692.83,0.00038356,30]
[330515352,1719547840237,-515.63,0.00038356,30]
[330515353,1719547840246,-500.0,0.00038356,30]
[330515354,1719547840256,-500.0,0.00038356,30]
[330515355,1719547840265,-528.3593317,0.00038356,30]
[330515356,1719547840274,-587.99,0.00038356,30]
[330515357,1719547840284,-500.0,0.00038356,30]
[330515358,1719547840293,-260.31763757,0.00038356,30]
[330515359,1719547840302,-500.0,0.00038356,30]
[330515360,1719547840311,-18690.7,0.00038356,30]
[330515361,1719547840321,-500.0,0.00038356,30]
[330515362,1719547840330,-800.37,0.00038356,30]
[330515363,1719547840340,-553.89666878,0.00038356,30]
[330515364,1719547840349,-500.0,0.00038356,30]
[330515365,1719547840359,-535.4224069,0.00038356,7]
[330515366,1719547840369,-500.0,0.00038356,30]
[330515367,1719547840378,-500.0,0.00038356,30]
[330515368,1719547840388,-500.0,0.00038356,30]
[330515369,1719547840397,-537.85049035,0.00038356,30]
[330515370,1719547840407,-200.0,0.00038356,7]
[330515371,1719547840416,-298.04188045,0.00038356,30]
[330515372,1719547840425,-500.0,0.00038356,30]
[330515373,1719547840434,-500.0,0.00038356,30]
[330515374,1719547840443,-465.67583429,0.00038356,30]
[330515375,1719547840452,-634.45,0.00038356,30]
[330515376,1719547840462,-500.0,0.00038356,30]
[330515377,1719547840471,-999.34,0.00038356,30]
[330515378,1719547840480,-500.0,0.00038356,30]
[330515379,1719547840490,-851.01,0.00038356,30]
[330515380,1719547840501,-500.0,0.00038356,30]
[330515381,1719547840510,-500.0,0.00038356,30]
[330515383,1719547840519,-183.85556637,0.00038356,30]
[330515385,1719547840528,-448.0895058,0.00038356,30]
[330515386,1719547840538,-500.0,0.00038356,30]
[330515387,1719547840548,-500.0,0.00038356,30]
[330515389,1719547840557,-500.0,0.00038356,30]
[330515391,1719547840566,-502.05056259,0.00038356,30]
[330515393,1719547840575,-540.31071679,0.00038356,30]
[330515394,1719547840585,-500.0,0.00038356,30]
[330515395,1719547840594,-500.0,0.00038356,30]
[330515396,1719547840603,-745.28,0.00038356,30]
[330515397,1719547840612,-500.0,0.00038356,30]
[330515399,1719547840622,-500.0,0.00038356,30]
[330515400,1719547840632,-578.83,0.00038356,30]
[330515401,1719547840642,-701.45,0.00038356,30]
[330515403,1719547840651,-500.0,0.00038356,30]
[330515405,1719547840661,-500.0,0.00038356,30]
[330515406,1719547840670,-500.0,0.00038356,30]
[330515407,1719547840679,-457.09553457,0.00038356,30]
[330515408,1719547840689,-884.29,0.00038356,30]
[330515409,1719547840698,-500.0,0.00038356,30]
[330515410,1719547840707,-500.0,0.00038356,30]
[330515411,1719547840716,-500.0,0.00038356,30]
[330515412,1719547840726,-502.69755119,0.00038356,30]
[330515413,1719547840735,-1652.0,0.00038356,30]
[330515414,1719547840745,-500.0,0.00038356,2]
[330515415,1719547840755,-500.0,0.00038356,30]
[330515416,1719547840764,-500.0,0.00038356,30]
[330515417,1719547840773,-863.46,0.00038356,30]
[330515418,1719547840782,-637.68011194,0.00038356,30]
[330515419,1719547840791,-602.56,0.00038356,30]
[330515420,1719547840800,-500.0,0.00038356,30]
[330515421,1719547840809,-500.0,0.00038356,30]
[330515422,1719547840818,-500.0,0.00038356,2]
[330515423,1719547840828,-500.0,0.00038356,30]
[330515424,1719547840837,-505.29545161,0.00038356,30]
[330515425,1719547840846,-958.46,0.00038356,30]
[330515426,1719547840857,-792.15,0.00038356,30]
[330515427,1719547840866,-500.0,0.00038356,30]
[330515428,1719547840876,-500.0,0.00038356,30]
[330515429,1719547840885,-318.01253964,0.00038356,30]
[330515430,1719547840895,-500.0,0.00038356,30]
[330515431,1719547840904,-500.0,0.00038356,30]
[330515432,1719547840913,-292.79730237,0.00038356,30]
[330515433,1719547840923,-500.0,0.00038356,30]
[330515434,1719547840932,-519.31,0.00038356,30]
[330515435,1719547840941,-500.0,0.00038356,30]
[330515436,1719547840950,-500.0,0.00038356,30]
[330515437,1719547840960,-500.0,0.00038356,30]
[330515438,1719547840970,-916.7,0.00038356,30]
[330515439,1719547840979,-1455.73,0.00038356,30]
[330515440,1719547840988,-576.42,0.00038356,30]
[330515441,1719547841097,-500.0,0.00038356,30]
[330515442,1719547841107,-689.96,0.00038356,30]
[330515443,1719547841116,-500.0,0.00038356,30]
[330515444,1719547841125,-733.32,0.00038356,30]
[330515445,1719547841135,-510.63,0.00038356,30]
[330515446,1719547841145,-500.0,0.00038356,30]
[330515447,1719547841158,-500.0,0.00038356,30]
[330515448,1719547841167,-500.0,0.00038356,30]
[330515449,1719547841176,-716.13,0.00038356,30]
[330515450,1719547841187,-500.0,0.00038356,30]
[330515451,1719547841196,-500.0,0.00038356,30]
[330515452,1719547841206,-615.0,0.00038356,30]
[330515453,1719547841215,-500.0,0.00038356,30]
[330515454,1719547841225,-500.0,0.00038356,30]
[330515455,1719547841237,-500.0,0.00038356,30]
[330515456,1719547841246,-500.0,0.00038356,30]
[330515457,1719547841256,-500.0,0.00038356,30]
[330515458,1719547841265,-500.0,0.00038356,30]
[330515459,1719547841274,-500.0,0.00038356,30]
[330515460,1719547841283,-558.92,0.00038356,30]
[330515461,1719547841292,-500.0,0.00038356,30]
[330515462,1719547841301,-500.0,0.00038356,30]
[330515463,1719547841310,-663.63,0.00038356,30]
[330515464,1719547841319,-757.14,0.00038356,30]
[330515465,1719547841329,-2251.26,0.00038356,30]
[330515466,1719547841338,-500.0,0.00038356,30]
[330515467,1719547841347,-500.0,0.00038356,30]
[330515468,1719547841356,-504.83525713,0.00038356,30]
[330515469,1719547841366,-500.0,0.00038356,30]
[330515470,1719547841375,-500.0,0.00038356,30]
[330515471,1719547841384,-535.37,0.00038356,30]
[330515472,1719547841393,-500.0,0.00038356,30]
[330515473,1719547841402,-500.0,0.00038356,30]
[330515474,1719547841411,-500.0,0.00038356,30]
[330515475,1719547841421,-500.0,0.00038356,30]
[330515476,1719547841430,-500.0,0.00038356,30]
[330515477,1719547841439,-500.0,0.00038356,30]
[330515478,1719547841448,-500.0,0.00038356,2]
[330515479,1719547841458,-920.77,0.00038356,30]
[330515480,1719547841467,-525.01,0.00038356,30]
[330515481,1719547841477,-375.78954573,0.00038356,30]
[330515482,1719547841486,-500.0,0.00038356,30]
[330515483,1719547841495,-500.0,0.00038356,30]
[330515484,1719547841504,-500.0,0.00038356,30]
[330515485,1719547841513,-500.60206172,0.00038356,30]
[330515486,1719547841522,-500.0,0.00038356,20]
[330515487,1719547841531,-500.0,0.00038356,30]
[330515488,1719547841540,-500.0,0.00038356,30]
[330515489,1719547841549,-500.0,0.00038356,30]
[330515490,1719547841558,-522.46,0.00038356,30]
[330515491,1719547841569,-410.89281927,0.00038356,30]
[330515492,1719547841579,-866.89,0.00038356,30]
[330515493,1719547841588,-500.0,0.00038356,30]
[330515494,1719547841598,-500.84,0.00038356,30]
[330515495,1719547841610,-500.0,0.00038356,30]
[330515496,1719547841620,-506.87,0.00038356,30]
[330515497,1719547841631,-500.0,0.00038356,30]
[330515498,1719547841641,-1003.92,0.00038356,30]
[330515499,1719547841650,-500.0,0.00038356,2]
[330515500,1719547841659,-729.86,0.00038356,2]
[330515501,1719547841669,-500.0,0.00038356,30]
[330515502,1719547841679,-500.0,0.00038356,30]
[330515503,1719547841688,-500.0,0.00038356,30]
[330515504,1719547841697,-151.0,0.00038356,7]
[330515505,1719547841706,-151.0,0.00038356,7]
[330515506,1719547841716,-161.985646,0.00038356,7]
[330515507,1719547841727,-500.0,0.00038356,30]
[330515508,1719547841736,-500.0,0.00038356,30]
[330515509,1719547841745,-509.91893683,0.00038356,30]
[330515510,1719547841759,-500.0,0.00038356,30]
[330515511,1719547841768,-500.0,0.00038356,30]
[330515512,1719547841777,-500.0,0.00038356,30]
[330515513,1719547841786,-680.89,0.00038356,30]
[330515514,1719547841795,-500.0,0.00038356,30]
[330515515,1719547841805,-1449.48,0.00038356,30]
[330515516,1719547841814,-840.8,0.00038356,30]
[330515517,1719547841823,-638.48,0.00038356,30]
[330515518,1719547841832,-500.0,0.00038356,30]
[330515519,1719547841841,-508.08962021,0.00038356,2]
[330515520,1719547841852,-500.0,0.00038356,30]
[330515521,1719547841862,-626.55,0.00038356,30]
[330515522,1719547841872,-500.0,0.00038356,30]
[330515523,1719547841881,-500.0,0.00038356,30]
[330515524,1719547841891,-502.92443082,0.00038356,30]
[330515525,1719547841900,-250.0,0.00038356,30]
[330515526,1719547841909,-611.37,0.00038356,30]
[330515527,1719547841918,-782.55,0.00038356,30]
[330515528,1719547841927,-500.0,0.00038356,30]
[330515529,1719547841937,-500.0,0.00038356,30]
[330515530,1719547841946,-411.09817983,0.00038356,30]
[330515531,1719547841956,-522.99,0.00038356,30]
[330515532,1719547841965,-3098.32,0.00038356,30]
[330515533,1719547841977,-737.67,0.00038356,30]
[330515534,1719547841986,-501.34,0.00038356,30]
[330515535,1719547841995,-500.0,0.00038356,30]
[330515536,1719547842005,-500.0,0.00038356,30]
[330515537,1719547842015,-1818.61,0.00038356,30]
[330515538,1719547842024,-500.0,0.00038356,30]
[330515539,1719547842033,-500.0,0.00038356,30]
[330515540,1719547842044,-500.0,0.00038356,30]
[330515541,1719547842053,-691.92,0.00038356,30]
[330515542,1719547842062,-500.0,0.00038356,30]
[330515543,1719547842071,-500.0,0.00038356,30]
[330515544,1719547842080,-500.0,0.00038356,30]
[330515545,1719547842090,-1042.69,0.00038356,30]
[330515546,1719547842100,-500.0,0.00038356,30]
[330515547,1719547842110,-766.37,0.00038356,30]
[330515548,1719547842120,-565.7181646,0.00038356,30]
[330515549,1719547842130,-426.11239832,0.00038356,30]
[330515550,1719547842140,-500.0,0.00038356,30]
[330515551,1719547842160,-596.51,0.00038356,30]
[330515552,1719547842177,-500.0,0.00038356,30]
[330515553,1719547842186,-500.0,0.00038356,30]
[330515554,1719547842195,-366.13775044,0.00038356,30]
[330515555,1719547842204,-500.0,0.00038356,30]
[330515556,1719547842213,-500.0,0.00038356,30]
[330515557,1719547842222,-500.0,0.00038356,30]
[330515558,1719547842230,-500.0,0.00038356,30]
[330515559,1719547842239,-1873.43,0.00038356,30]
[330515560,1719547842248,-500.0,0.00038356,30]
[330515561,1719547842258,-500.0,0.00038356,30]
[330515562,1719547842268,-500.0,0.00038356,30]
[330515563,1719547842276,-500.0,0.00038356,30]
[330515564,1719547842285,-536.14,0.00038356,30]
[330515565,1719547842294,-663.13,0.00038356,30]
[330515566,1719547842304,-500.0,0.00038356,30]
[330515567,1719547842314,-155.685177,0.00038356,7]
[330515568,1719547842323,-500.0,0.00038356,30]
[330515569,1719547842332,-750.13,0.00038356,30]
[330515570,1719547842342,-532.47,0.00038356,30]
[330515571,1719547842352,-1812.1,0.00038356,30]
[330515572,1719547842361,-500.0,0.00038356,2]
[330515573,1719547842371,-500.0,0.00038356,30]
[330515574,1719547842380,-500.0,0.00038356,30]
[330515575,1719547842389,-523.31435894,0.00038356,30]
[330515576,1719547842398,-500.0,0.00038356,30]
[330515577,1719547842407,-500.0,0.00038356,30]
[330515578,1719547842416,-776.33,0.00038356,30]
[330515579,1719547842426,-923.62,0.00038356,30]
[330515580,1719547842434,-996.91,0.00038356,30]
[330515581,1719547842446,-500.0,0.00038356,30]
[330515582,1719547842455,-500.0,0.00038356,30]
[330515583,1719547842464,-1654.91,0.00038356,30]
[330515584,1719547842474,-500.0,0.00038356,30]
[330515585,1719547842483,-500.0,0.00038356,30]
[330515586,1719547842492,-500.0,0.00038356,30]
[330515587,1719547842502,-500.0,0.00038356,30]
[330515588,1719547842512,-500.0,0.00038356,30]
[330515589,1719547842523,-620.84,0.00038356,30]
[330515590,1719547842533,-500.0,0.00038356,30]
[330515591,1719547842544,-500.0,0.00038356,30]
[330515592,1719547842554,-291.50816455,0.00038356,30]
[330515593,1719547842564,-914.54,0.00038356,30]
[330515594,1719547842575,-500.0,0.00038356,30]
[330515595,1719547842584,-500.0,0.00038356,14]
[330515596,1719547842595,-500.0,0.00038356,30]
[330515597,1719547842605,-500.0,0.00038356,30]
[330515598,1719547842615,-500.0,0.00038356,30]
[330515599,1719547842625,-17639.64,0.00038356,30]
[330515600,1719547842634,-500.0,0.00038356,30]
[330515601,1719547842643,-500.0,0.00038356,30]
[330515602,1719547842653,-500.0,0.00038356,30]
[330515603,1719547842661,-500.0,0.00038356,30]
[330515604,1719547842671,-500.0,0.00038356,30]
[330515605,1719547842680,-531.78585268,0.00038356,30]
[330515606,1719547842689,-500.0,0.00038356,30]
[330515607,1719547842698,-500.0,0.00038356,30]
[330515608,1719547842707,-2052.14,0.00038356,30]
[330515609,1719547842716,-500.0,0.00038356,30]
[330515610,1719547842726,-1327.86,0.00038356,30]
[330515611,1719547842735,-487.43673657,0.00038356,30]
[330515612,1719547842745,-513.53642244,0.00038356,30]
[330515613,1719547842754,-500.0,0.00038356,30]
[330515614,1719547842763,-1062.4,0.00038356,30]
[330515615,1719547842772,-500.0,0.00038356,30]
[330515616,1719547842781,-500.0,0.00038356,30]
[330515617,1719547842791,-835.2,0.00038356,30]
[330515618,1719547842800,-500.0,0.00038356,30]
[330515619,1719547842810,-518.37611023,0.00038356,30]
[330515621,1719547842819,-500.0,0.00038356,30]
[330515623,1719547842828,-500.0,0.00038356,30]
[330515625,1719547842837,-1023.34,0.00038356,30]
[330515627,1719547842847,-425.33702503,0.00038356,30]
[330515629,1719547842857,-571.4,0.00038356,30]
[330515631,1719547842866,-500.0,0.00038356,30]
[330515634,1719547842875,-500.0,0.00038356,30]
[330515636,1719547842885,-161.0972318,0.00038356,30]
[330515637,1719547842895,-500.0,0.00038356,30]
[330515638,1719547842904,-500.0,0.00038356,30]
[330515639,1719547842914,-611.46,0.00038356,30]
[330515640,1719547842923,-500.0,0.00038356,30]
[330515642,1719547842932,-151.0,0.00038356,7]
[330515643,1719547842942,-151.0,0.00038356,7]
[330515644,1719547842951,-151.0,0.00038356,7]
[330515645,1719547842960,-151.0,0.00038356,7]
[330515646,1719547842970,-500.0,0.00038356,30]
[330515647,1719547842982,-10297.51,0.00038356,30]
[330515648,1719547842993,-500.0,0.00038356,30]
[330515649,1719547843002,-1371.19,0.00038356,120]
[330515650,1719547843012,-737.24,0.00038356,30]
[330515651,1719547843020,-821.01,0.00038356,30]
[330515653,1719547843030,-151.0,0.00038356,7]
[330515654,1719547843136,-574.59,0.00038356,30]
[330515655,1719547843149,-151.0,0.00038356,7]
[330515656,1719547843158,-151.0,0.00038356,7]
[330515657,1719547843168,-500.0,0.00038356,30]
[330515658,1719547843178,-500.0,0.00038356,30]
[330515659,1719547843190,-505.88383244,0.00038356,30]
[330515661,1719547843200,-3459.54,0.00038356,30]
[330515662,1719547843209,-1712.61,0.00038356,30]
[330515664,1719547843218,-527.65,0.00038356,30]
[330515666,1719547843231,-2461.89,0.00038356,30]
[330515667,1719547843240,-500.0,0.00038356,30]
[330515668,1719547843249,-500.0,0.00038356,30]
[330515669,1719547843259,-500.0,0.00038356,30]
[330515670,1719547843267,-286.05858214,0.00038356,30]
[330515678,1719547843543,-213.94141786,0.00038356,30]
[330515679,1719547843554,-4384.33487534,0.00038356,30]
[330515680,1719547843566,-3362.35512466,0.00038356,30]
[330515681,1719547843576,-2825.0,0.00038356,30]
[330515682,1719547843587,-500.0,0.00038356,30]
[330515683,1719547843597,-500.0,0.00038356,30]
[330515685,1719547843607,-54.84489034,0.00038356,30]
[330515686,1719547843721,-209.0,0.00035485,2]
[330515687,1719547843731,-445.15510966,0.00038356,30]
[330515688,1719547843740,-500.0,0.00038356,30]
[330515689,1719547843749,-517.38336456,0.00038356,30]
[330515690,1719547843760,-679.23975741,0.00038356,30]
[330515691,1719547843939,-1289.90787805,0.00038356,30]
[330515692,1719547843951,-302.20670787,0.00038356,30]
[330515693,1719547843963,-1871.90506728,0.00038356,30]
[330515694,1719547843974,-1078.49998,0.00038356,30]
[330515706,1719547846826,-410.05724483,0.00038356,30]
[330515707,1719547846839,-5005.32392927,0.00038356,30]
[330515708,1719547948416,166.379134,0.00021096,2]
[330515716,1719548511633,1047.11107994,0.00014999,2]
[330515717,1719548571393,991.39184751,0.00014999,2]
[330515718,1719548585508,3769.18827951,0.00014999,2]
[330515719,1719548621426,2005.1582879,0.00014999,2]
[330515720,1719548658533,3769.18827951,0.00014999,2]
[330515721,1719548738517,3769.18827951,0.00014999,2]
[330515722,1719548825117,-210.47572087,0.00018899,2]
[330515723,1719548827531,3769.18827951,0.00014999,2]
[330515724,1719548833171,-226.67659189,0.00018899,2]
[330515725,1719548834147,-81.36122763,0.00018899,2]
[330515726,1719548834167,-827.93034571,0.00019065,2]
[330515727,1719548834187,-129.65063325,0.00019999,2]
[330515728,1719548840092,-25.34936675,0.00019999,2]
[330515729,1719548840112,-300.0,0.00019999,2]
[330515730,1719548840132,-1299.82202816,0.0002,2]
[330515731,1719548845378,-6075.17797184,0.0002,2]
[330515732,1719548845397,-154.97352877,0.00021096,2]
[330515733,1719548845416,-154.80649189,0.00021917,2]
[330515734,1719548845436,-896.35538721,0.0002243,2]
[330515735,1719548845456,-155.01749415,0.0002243,2]
[330515736,1719548845480,-216.88239442,0.00022943,2]
[330515737,1719548845500,-154.90515503,0.00023455,2]
[330515738,1719548845520,-403.4223674,0.00023455,2]
[330515739,1719548845541,-237.0720807,0.00025291,2]
[330515740,1719548845564,-271.339062,0.00025698,2]
[330515741,1719548845583,-1121.89219055,0.00025823,2]
[330515742,1719548849116,-344.92520815,0.00025823,2]
[330515743,1719548849136,-533.08114083,0.00026787,2]
[330515744,1719548849157,-158.20251691,0.00028825,2]
[330515745,1719548849177,-30.56459929,0.00029083,2]
[330515773,1719548945121,-154.91474121,0.00019165,2]
[330515774,1719548945143,-3769.18827951,0.00019999,2]
[330515775,1719548945162,-167.32820781,0.00023966,2]
[330515778,1719548949105,-729.0271794,0.00023966,2]
[330515779,1719548949126,-127.63791762,0.00029083,2]
[330515780,1719548949147,-241.40659036,0.00029512,5]
[330515781,1719548949168,-161.42659871,0.00029612,2]
[330515782,1719548949189,-158.20251691,0.00029652,2]
[330515783,1719548959030,3769.18827951,0.00029083,2]
[330515785,1719548986642,400.62435267,0.00029049,2]
[330515787,1719548997547,1643.56145731,0.00029049,2]
[330515821,1719549032766,-386.01217285,0.00029049,2]
[330515974,1719549043886,-13.67194733,0.00029049,2]
[330515975,1719549043899,-570.499992,0.00029049,2]
[330515976,1719549043917,-280.000005,0.00029049,2]
[330516007,1719549046766,-875.44270502,0.00029049,2]
[330516009,1719549046777,-155.40443651,0.00032298,7]
[330516010,1719549046787,-158.20251691,0.00032462,7]
[330516011,1719549046797,-161.42659871,0.00032537,7]
[330516012,1719549046806,-157.24533965,0.00033045,7]
[330516013,1719549046816,-157.24533965,0.00033845,7]
[330516014,1719549046826,-157.24533965,0.00034165,7]
[330516015,1719549046836,-317.01615853,0.0003437,2]
[330516016,1719549046848,-1023.67334161,0.0003437,2]
[330516017,1719549046860,-514.55065191,0.0003437,2]
[330516018,1719549046871,-1229.33739131,0.0003437,2]
[330516019,1719549046883,-11971.55222627,0.0003437,2]
[330516020,1719549046899,-302.66488801,0.0003437,2]
[330516021,1719549134190,166.368871,0.00021096,2]
[330516028,1719549442033,258.24743035,0.0001,2]
[330516029,1719549478621,162.90143711,0.0001,2]
[330516030,1719549488592,3769.18827951,0.0001,2]
[330516031,1719549515726,160.0,0.00012121,2]
[330516032,1719549521835,303.57990019,0.00012121,2]
[330516033,1719549534068,3769.18827951,0.00012121,2]
[330516034,1719549586074,3465.38779072,0.00014692,2]
[330516037,1719549933126,-278.5312529,0.00017808,2]
[330516038,1719549933146,-500.0,0.00025,4]
[330516039,1719549933166,-1762.56034146,0.0002554,2]
[330516042,1719550031093,-158.002111,0.00016255,2]
[330516043,1719550031116,-265.94554631,0.0002554,2]